bitfinex/quotes_BTCUSD_20240911
["timestamp","ask_amount","ask_price","bid_price","bid_amount"]
[1726033955810,0.28498644,56364.0,56363.0,0.02761696]
[1726033956022,0.28398644,56364.0,56363.0,0.02761696]
[1726033956231,0.28898644,56364.0,56363.0,0.02761696]
[1726033956914,0.22698644,56364.0,56363.0,0.02761696]
[1726033957119,0.03478644,56364.0,56363.0,0.12761696]
[1726033957371,0.09478644,56364.0,56363.0,0.12761696]
[1726033957798,0.09678644,56364.0,56363.0,0.12761696]
[1726033958269,0.09978644,56364.0,56363.0,0.12761696]
[1726033959540,0.03978644,56364.0,56363.0,0.12761696]
[1726033959752,0.03778644,56364.0,56363.0,0.12761696]
[1726033960124,0.03778644,56364.0,56363.0,0.14696948]
[1726033960689,0.03778644,56364.0,56363.0,0.32290966]
[1726033961048,0.008,56364.0,56363.0,0.32290966]
[1726033961457,0.03778644,56364.0,56363.0,0.32290966]
[1726033962059,0.03278644,56364.0,56363.0,0.32290966]
[1726033962263,0.03378644,56364.0,56363.0,0.32290966]
[1726033962469,0.03078644,56364.0,56363.0,0.32290966]
[1726033962687,0.03078644,56364.0,56363.0,0.30355714]
[1726033962906,0.03178644,56364.0,56363.0,0.30455714]
[1726033964412,0.03078644,56364.0,56363.0,0.30355714]
[1726033964630,0.22128644,56364.0,56363.0,0.30355714]
[1726033964843,0.22128644,56364.0,56363.0,0.27694018]
[1726033965288,0.02978644,56359.0,56358.0,0.001634]
[1726033966193,0.03178644,56359.0,56358.0,0.001634]
[1726033966624,0.03278644,56359.0,56358.0,0.002634]
[1726033966835,0.03278644,56359.0,56358.0,0.0372377]
[1726033967727,0.03378644,56359.0,56358.0,0.0382377]
[1726033968165,0.03178644,56359.0,56358.0,0.0362377]
[1726033968385,0.03178644,56359.0,56358.0,0.1372377]
[1726033968606,0.03278644,56359.0,56358.0,0.1372377]
[1726033969043,0.03278644,56359.0,56358.0,0.102634]
[1726033969044,0.24968644,56359.0,56358.0,0.102634]
[1726033969277,0.24968644,56359.0,56358.0,0.002634]
[1726033970657,0.24868644,56359.0,56358.0,0.001634]
[1726033970873,0.24868644,56359.0,56358.0,0.002634]
[1726033971522,0.24868644,56359.0,56358.0,0.001634]
[1726033971729,0.24868644,56359.0,56358.0,0.002634]
[1726033972156,0.24868644,56359.0,56358.0,0.001634]
[1726033972527,0.25268644,56359.0,56358.0,0.001634]
[1726033972730,0.25068644,56359.0,56358.0,0.001634]
[1726033973145,0.25468644,56359.0,56358.0,0.001634]
[1726033973351,0.25550344,56359.0,56358.0,0.001634]
[1726033979753,0.09660344,56359.0,56358.0,0.02026793]
[1726033979995,0.09660344,56359.0,56358.0,0.001634]
[1726033980224,0.09860344,56359.0,56358.0,0.001634]
[1726033980909,0.09660344,56359.0,56358.0,0.001634]
[1726033981121,0.03660344,56359.0,56358.0,0.001634]
[1726033981600,0.09660344,56359.0,56358.0,0.02026793]
[1726033984683,0.03660344,56359.0,56358.0,0.02026793]
[1726033984907,0.09660344,56359.0,56358.0,0.02026793]
[1726033986744,0.03420905,56359.0,56358.0,0.02026793]
[1726033986954,0.006817,56359.0,56358.0,0.02026793]
[1726033987164,0.03420905,56359.0,56358.0,0.02026793]
[1726033987378,0.006817,56359.0,56358.0,0.02026793]
[1726033988008,0.006817,56359.0,56358.0,0.19620811]
[1726033988216,0.006817,56359.0,56358.0,0.44530811]
[1726033988860,0.03420905,56359.0,56358.0,0.44530811]
[1726033989081,0.03420905,56359.0,56358.0,0.29620811]
[1726033992036,0.03420905,56359.0,56358.0,0.12026793]
[1726033992251,0.38360905,56359.0,56358.0,0.101634]
[1726033992470,0.4365776,56359.0,56358.0,0.101634]
[1726033993159,0.4345776,56359.0,56358.0,0.101634]
[1726033993395,0.03420905,56359.0,56358.0,0.211461]
[1726033993606,0.006817,56359.0,56358.0,0.2501105]
[1726033993832,0.006817,56359.0,56358.0,0.42605068]
[1726033994731,0.03420905,56359.0,56358.0,0.42605068]
[1726033994952,0.006817,56359.0,56358.0,0.42605068]
[1726033996358,0.006817,56359.0,56358.0,0.49922878]
[1726033996779,0.03420905,56359.0,56358.0,0.49922878]
[1726033997205,0.006817,56359.0,56358.0,0.51738602]
[1726033997635,0.03420905,56359.0,56358.0,0.51738602]
[1726033998721,0.006817,56359.0,56358.0,0.51738602]
[1726034000051,0.006817,56359.0,56358.0,2.01738602]
[1726034000483,0.006817,56359.0,56358.0,0.51738602]
[1726034006379,0.006817,56359.0,56358.0,0.85418602]
[1726034007025,0.000817,56359.0,56358.0,0.85418602]
[1726034007464,0.001817,56359.0,56358.0,0.85518602]
[1726034007681,0.000817,56359.0,56358.0,0.85518602]
[1726034007955,0.001817,56359.0,56358.0,0.85518602]
[1726034008977,0.001817,56359.0,56358.0,0.85418602]
[1726034009208,0.002817,56359.0,56358.0,0.85518602]
[1726034009413,0.001817,56359.0,56358.0,0.85518602]
[1726034009829,0.000817,56359.0,56358.0,0.85418602]
[1726034010040,0.002817,56359.0,56358.0,0.87818602]
[1726034010505,0.001817,56359.0,56358.0,0.87818602]
[1726034010708,0.001817,56359.0,56358.0,2.37818602]
[1726034010913,0.002817,56359.0,56358.0,2.37818602]
[1726034015581,0.000817,56370.0,56360.0,0.1505]
[1726034015806,0.000817,56370.0,56368.0,0.3373]
[1726034016062,0.000817,56370.0,56369.0,0.27594018]
[1726034016272,0.000817,56370.0,56369.0,0.29894018]
[1726034016953,0.001817,56370.0,56369.0,0.29894018]
[1726034017157,0.002817,56370.0,56369.0,0.47510973]
[1726034017377,0.001817,56370.0,56369.0,0.47510973]
[1726034017609,0.0033024,56375.0,56370.0,0.1505]
[1726034017843,0.0033024,56375.0,56374.0,0.1830051]
[1726034018057,0.0033024,56375.0,56374.0,0.66176766]
[1726034018321,0.0033024,56375.0,56374.0,0.61146407]
[1726034020051,0.0043024,56375.0,56374.0,0.61146407]
[1726034020236,0.0033024,56375.0,56374.0,0.61146407]
[1726034020701,0.0043024,56375.0,56374.0,0.61846407]
[1726034021137,0.0053024,56375.0,56374.0,0.62446407]
[1726034021593,0.0053024,56375.0,56374.0,2.12446407]
[1726034021818,0.000817,56378.0,56377.0,0.10970151]
[1726034022023,0.000817,56378.0,56377.0,0.82211124]
[1726034022250,0.0024854,56386.0,56377.0,0.92211124]
[1726034022476,0.0024854,56386.0,56385.0,0.26020151]
[1726034022685,0.0024854,56386.0,56385.0,0.64594169]
[1726034022913,0.0024854,56386.0,56385.0,0.74594169]
[1726034023130,0.0024854,56386.0,56385.0,0.78459119]
[1726034023609,0.0024854,56386.0,56385.0,0.59779119]
[1726034024268,0.0034854,56386.0,56385.0,0.68087361]
[1726034024699,0.0034854,56386.0,56385.0,0.53037361]
[1726034025796,0.02820805,56395.0,56385.0,0.53037361]
[1726034025797,0.000816,56395.0,56391.0,0.18278393]
[1726034026004,0.000816,56395.0,56392.0,0.29421857]
[1726034027158,0.002,56394.0,56392.0,0.29421857]
[1726034027408,0.02939205,56393.0,56392.0,0.29421857]
[1726034027613,0.02939205,56393.0,56392.0,0.4770025]
[1726034027803,0.36739205,56393.0,56392.0,0.4770025]
[1726034029558,0.36739205,56393.0,56392.0,0.30206232]
[1726034029777,0.36739205,56393.0,56392.0,0.11927839]
[1726034029989,0.36739205,56393.0,56392.0,0.01827839]
[1726034030849,0.37239205,56393.0,56392.0,0.01827839]
[1726034031489,0.37039205,56393.0,56392.0,0.01827839]
[1726034031735,0.36739205,56393.0,56392.0,0.01827839]
[1726034032839,0.37339205,56393.0,56392.0,0.01827839]
[1726034033053,0.38039205,56393.0,56392.0,0.01927839]
[1726034033268,0.36739205,56393.0,56392.0,0.01827839]
[1726034033777,0.38239205,56393.0,56392.0,0.02027839]
[1726034040847,0.44239205,56393.0,56392.0,0.002]
[1726034043834,0.26029205,56393.0,56392.0,0.002]
[1726034044061,0.26029205,56393.0,56392.0,0.18478393]
[1726034044269,0.26029205,56393.0,56392.0,0.28478393]
[1726034044479,0.26029205,56393.0,56392.0,0.32326232]
[1726034046974,0.19829205,56393.0,56392.0,0.32326232]
[1726034047169,0.25829205,56393.0,56392.0,0.32326232]
[1726034047428,0.04239205,56393.0,56392.0,0.32326232]
[1726034047654,0.04239205,56393.0,56392.0,0.34105966]
[1726034048121,0.10239205,56393.0,56392.0,0.34105966]
[1726034049285,0.015,56393.0,56392.0,0.51699984]
[1726034049511,0.04239205,56393.0,56392.0,0.51699984]
[1726034050387,0.10239205,56393.0,56392.0,0.51699984]
[1726034052221,0.10239205,56393.0,56392.0,0.44389676]
[1726034052933,0.10439205,56393.0,56392.0,0.42609942]
[1726034053624,0.10439205,56393.0,56392.0,0.002]
[1726034053625,0.45639205,56393.0,56392.0,0.002]
[1726034054288,0.50908569,56393.0,56392.0,0.002]
[1726034054532,0.02939205,56387.0,56386.0,0.001632]
[1726034054742,0.44139205,56387.0,56386.0,0.001632]
[1726034055249,0.52061653,56387.0,56386.0,0.001632]
[1726034055475,0.44139205,56387.0,56386.0,0.001632]
[1726034055699,0.76270448,56387.0,56386.0,0.001632]
[1726034056144,0.65707183,56387.0,56386.0,0.001632]
[1726034056607,0.78880593,56387.0,56386.0,0.001632]
[1726034057069,0.79780593,56387.0,56386.0,0.002632]
[1726034057285,0.9569926,56387.0,56386.0,0.002632]
[1726034057508,0.9709926,56387.0,56386.0,0.003632]
[1726034057741,0.9709926,56387.0,56362.0,1.19027626]
[1726034057742,0.02939205,56363.0,56362.0,0.66245108]
[1726034057987,0.02939205,56363.0,56360.0,0.05]
[1726034057988,0.002,56361.0,56360.0,0.05]
[1726034058223,0.18199205,56363.0,56358.0,0.18707048]
[1726034058224,0.002,56359.0,56358.0,0.18707048]
[1726034058457,0.002,56359.0,56358.0,0.38366567]
[1726034059201,0.002,56359.0,56358.0,0.48366567]
[1726034060899,0.005,56359.0,56358.0,0.48366567]
[1726034061112,0.007,56359.0,56358.0,0.48366567]
[1726034061799,0.005,56359.0,56358.0,0.48366567]
[1726034062245,0.005,56359.0,56358.0,0.82406567]
[1726034062462,0.003,56359.0,56358.0,0.82406567]
[1726034062692,0.003,56359.0,56358.0,0.82806567]
[1726034062907,0.02739205,56363.0,56358.0,0.82806567]
[1726034063124,0.02739205,56363.0,56362.0,0.18295108]
[1726034063343,0.02739205,56363.0,56362.0,0.45889126]
[1726034065094,0.08739205,56368.0,56362.0,0.45989126]
[1726034065327,0.08739205,56368.0,56363.0,0.27594018]
[1726034065328,0.032,56366.0,56363.0,0.27594018]
[1726034065601,0.03,56366.0,56364.0,0.02769402]
[1726034065833,0.032,56366.0,56365.0,0.17594018]
[1726034066060,0.032,56366.0,56364.0,0.02769402]
[1726034066061,0.02939205,56365.0,56364.0,0.17594018]
[1726034066282,0.02939205,56365.0,56364.0,0.27594018]
[1726034066749,0.02939205,56365.0,56364.0,0.30531718]
[1726034067235,0.18399205,56365.0,56364.0,0.129377]
[1726034067456,0.002,56362.0,56361.0,0.01782986]
[1726034067685,0.002,56362.0,56361.0,0.19377004]
[1726034067904,0.002,56362.0,56361.0,0.27594018]
[1726034068352,0.002,56364.0,56361.0,0.32240465]
[1726034068596,0.18199205,56365.0,56361.0,0.32240465]
[1726034068597,0.18199205,56365.0,56363.0,0.18295108]
[1726034068819,0.18199205,56365.0,56364.0,0.1]
[1726034069733,0.18599205,56365.0,56364.0,0.1]
[1726034070211,0.18799205,56365.0,56364.0,0.1]
[1726034070444,0.18799205,56365.0,56364.0,0.15247939]
[1726034070669,0.18599205,56365.0,56364.0,0.15247939]
[1726034071125,0.004,56365.0,56364.0,0.15247939]
[1726034071356,0.004,56365.0,56364.0,0.47151957]
[1726034071815,0.007,56365.0,56364.0,1.97151957]
[1726034073673,0.007,56365.0,56364.0,1.82841957]
[1726034075463,0.007,56365.0,56364.0,0.32841957]
[1726034077715,0.007,56365.0,56364.0,0.47151957]
[1726034078632,0.007,56365.0,56364.0,0.68501957]
[1726034079081,0.007,56365.0,56364.0,2.18501957]
[1726034079531,0.004,56365.0,56364.0,2.18501957]
[1726034079814,0.03,56371.0,56364.0,2.19001957]
[1726034080046,0.05739205,56372.0,56364.0,2.19001957]
[1726034080047,0.02739205,56374.0,56370.0,0.18295108]
[1726034080282,0.02739205,56374.0,56373.0,0.18295108]
[1726034080513,0.02739205,56374.0,56373.0,0.45889126]
[1726034081433,0.02939205,56374.0,56373.0,0.45889126]
[1726034081682,0.02939205,56374.0,56373.0,0.51909039]
[1726034081905,0.08939205,56374.0,56373.0,0.51909039]
[1726034082592,0.09039205,56374.0,56373.0,0.51909039]
[1726034082814,0.08839205,56374.0,56373.0,0.51909039]
[1726034083035,0.08739205,56374.0,56373.0,0.51909039]
[1726034083243,0.08939205,56374.0,56373.0,0.51909039]
[1726034083484,0.08739205,56374.0,56373.0,0.52209039]
[1726034083904,0.08739205,56374.0,56373.0,0.52409039]
[1726034084338,0.08739205,56374.0,56373.0,0.52209039]
[1726034084558,0.08939205,56374.0,56373.0,0.28995108]
[1726034084766,0.24239205,56374.0,56373.0,0.104]
[1726034085036,0.24239205,56374.0,56373.0,0.004]
[1726034085483,0.24239205,56374.0,56373.0,0.007]
[1726034085921,0.24239205,56374.0,56370.0,0.1]
[1726034086144,0.24239205,56374.0,56371.0,0.20423529]
[1726034086371,0.002,56372.0,56371.0,0.20423529]
[1726034086574,0.24339205,56374.0,56371.0,0.48718637]
[1726034086815,0.24039205,56374.0,56372.0,0.1]
[1726034087019,0.24039205,56374.0,56372.0,0.27594018]
[1726034087287,0.24339205,56374.0,56372.0,0.27594018]
[1726034087487,0.24039205,56374.0,56372.0,0.27594018]
[1726034087830,0.002,56373.0,56372.0,0.27594018]
[1726034088488,0.002,56373.0,56372.0,0.31819097]
[1726034090163,0.21339205,56373.0,56372.0,0.1]
[1726034090479,0.002,56372.0,56368.0,0.1]
[1726034090698,0.002,56369.0,56368.0,0.27594018]
[1726034090920,0.002,56369.0,56368.0,0.32906398]
[1726034092439,0.002,56369.0,56368.0,0.33006398]
[1726034092866,0.002,56370.0,56368.0,0.33106398]
[1726034093115,0.002,56370.0,56369.0,0.18295108]
[1726034093339,0.08739205,56374.0,56369.0,0.6613163]
[1726034093559,0.08939205,56374.0,56373.0,0.18295108]
[1726034093783,0.08939205,56374.0,56373.0,0.35889126]
[1726034093996,0.08939205,56374.0,56373.0,0.45889126]
[1726034094210,0.08939205,56374.0,56373.0,0.38570181]
[1726034094658,0.08939205,56374.0,56373.0,0.20976163]
[1726034096683,0.09439205,56374.0,56373.0,0.21076163]
[1726034096892,0.09439205,56374.0,56373.0,0.2370503]
[1726034096893,0.09839205,56374.0,56373.0,0.2370503]
[1726034097550,0.09839205,56374.0,56373.0,0.21076163]
[1726034100863,0.09839205,56374.0,56373.0,0.22888994]
[1726034101317,0.071,56374.0,56373.0,0.37818994]
[1726034101877,0.041,56374.0,56373.0,0.37818994]
[1726034102081,0.041,56374.0,56373.0,0.43935144]
[1726034102443,0.009,56374.0,56373.0,0.61529162]
[1726034103105,0.009,56374.0,56373.0,0.46599162]
[1726034103759,0.004,56374.0,56373.0,0.46499162]
[1726034104228,0.006,56374.0,56373.0,0.46499162]
[1726034104460,0.002,56374.0,56373.0,0.46499162]
[1726034104692,0.001,56374.0,56373.0,0.46499162]
[1726034105786,0.02739205,56377.0,56373.0,0.46499162]
[1726034106017,0.02739205,56377.0,56376.0,0.10976163]
[1726034106231,0.02739205,56377.0,56376.0,0.38570181]
[1726034107334,0.02739205,56377.0,56376.0,0.38870181]
[1726034108679,0.02939205,56377.0,56376.0,0.39270181]
[1726034109120,0.02739205,56377.0,56376.0,0.39270181]
[1726034109333,0.02739205,56377.0,56376.0,0.56887136]
[1726034109546,0.02939205,56377.0,56376.0,0.28294018]
[1726034109767,0.24239205,56377.0,56376.0,0.107]
[1726034109982,0.24239205,56377.0,56376.0,0.007]
[1726034110188,0.32181684,56377.0,56376.0,0.107]
[1726034110647,0.32181684,56377.0,56376.0,0.003]
[1726034110875,0.32181684,56377.0,56373.0,0.001632]
[1726034110876,0.41470413,56377.0,56373.0,0.001632]
[1726034111106,0.2679479,56374.0,56373.0,0.001632]
[1726034111321,0.27238284,56374.0,56373.0,0.001632]
[1726034111788,0.29533995,56374.0,56373.0,0.001632]
[1726034112000,0.24239205,56374.0,56373.0,0.02277136]
[1726034112234,0.24239205,56374.0,56373.0,0.12277136]
[1726034113539,0.24439205,56374.0,56373.0,0.12277136]
[1726034113978,0.24539205,56374.0,56373.0,0.12277136]
[1726034114645,0.44312689,56374.0,56373.0,0.001632]
[1726034114876,0.52254874,56374.0,56373.0,0.001632]
[1726034115120,0.64906707,56374.0,56373.0,0.001632]
[1726034115369,0.8637498,56374.0,56373.0,0.001632]
[1726034115642,0.8637498,56374.0,56364.0,0.001632]
[1726034115643,0.002,56365.0,56364.0,0.001632]
[1726034115870,0.42979205,56365.0,56364.0,0.001632]
[1726034116077,0.64447478,56365.0,56364.0,0.001632]
[1726034116312,0.94551817,56365.0,56364.0,0.001632]
[1726034116502,1.04150272,56365.0,56364.0,0.001632]
[1726034117155,0.94551817,56365.0,56364.0,0.001632]
[1726034117374,0.65247478,56365.0,56364.0,0.002632]
[1726034117788,0.64447478,56365.0,56364.0,0.001632]
[1726034117997,0.65147478,56365.0,56364.0,0.003632]
[1726034118203,0.66047478,56365.0,56364.0,0.003632]
[1726034118422,0.74558771,56365.0,56364.0,0.003632]
[1726034118677,0.73858771,56365.0,56364.0,0.002632]
[1726034119470,0.72958771,56365.0,56364.0,0.001632]
[1726034119845,0.73958771,56365.0,56364.0,0.002632]
[1726034120075,0.73758771,56365.0,56364.0,0.002632]
[1726034120468,0.87060782,56365.0,56364.0,0.002632]
[1726034120847,0.87760782,56365.0,56364.0,0.003632]
[1726034121292,0.86160782,56365.0,56364.0,0.001632]
[1726034121546,0.86160782,56365.0,56364.0,0.002632]
[1726034121760,0.86960782,56365.0,56364.0,0.002632]
[1726034122227,0.94352789,56365.0,56364.0,0.002632]
[1726034122453,0.94552789,56365.0,56364.0,0.002632]
[1726034122684,0.95552789,56365.0,56364.0,0.003632]
[1726034127283,0.18009205,56361.0,56360.0,0.001632]
[1726034127497,0.26357317,56361.0,56360.0,0.001632]
[1726034128148,0.32357317,56361.0,56360.0,0.001632]
[1726034128350,0.43232886,56361.0,56360.0,0.001632]
[1726034128554,0.76093904,56361.0,56360.0,0.001632]
[1726034128762,0.62711782,56361.0,56360.0,0.001632]
[1726034129640,0.62911782,56361.0,56360.0,0.001632]
[1726034129866,0.55408415,56361.0,56360.0,0.001632]
[1726034130068,1.016485,56361.0,56360.0,0.001632]
[1726034130282,1.15024605,56361.0,56360.0,0.001632]
[1726034130499,1.70184157,56361.0,56360.0,0.002632]
[1726034130721,1.92495605,56361.0,56360.0,0.002632]
[1726034131196,1.92095605,56361.0,56360.0,0.002632]
[1726034131399,1.92095605,56361.0,56360.0,0.003632]
[1726034131400,1.93395605,56361.0,56360.0,0.003632]
[1726034131606,1.92895605,56361.0,56360.0,0.002632]
[1726034131837,1.57410105,56361.0,56360.0,0.002632]
[1726034132248,1.94295605,56361.0,56360.0,0.003632]
[1726034132459,1.58810105,56361.0,56360.0,0.003632]
[1726034132683,1.57510105,56361.0,56360.0,0.002632]
[1726034132911,1.5745495,56361.0,56360.0,0.002632]
[1726034133130,1.5885495,56361.0,56360.0,0.002632]
[1726034133341,1.72008317,56361.0,56360.0,0.002632]
[1726034133562,1.69208317,56361.0,56360.0,0.001632]
[1726034133795,2.04693817,56361.0,56360.0,0.001632]
[1726034134010,2.07493817,56361.0,56360.0,0.001632]
[1726034134233,1.72008317,56361.0,56360.0,0.001632]
[1726034134671,2.07493817,56361.0,56360.0,0.001632]
[1726034135132,2.04693817,56361.0,56360.0,0.001632]
[1726034135346,1.9154045,56361.0,56360.0,0.001632]
[1726034136044,1.9294045,56361.0,56360.0,0.001632]
[1726034136307,1.9434045,56361.0,56360.0,0.001632]
[1726034136524,2.04855421,56361.0,56360.0,0.001632]
[1726034136960,2.03455421,56361.0,56360.0,0.001632]
[1726034137180,0.08939205,56348.0,56347.0,0.0024854]
[1726034137400,0.24229205,56348.0,56347.0,0.0024854]
[1726034137641,0.24672957,56348.0,56347.0,0.0024854]
[1726034137846,0.09382957,56348.0,56347.0,0.0024854]
[1726034138624,0.10782957,56348.0,56347.0,0.0024854]
[1726034138841,0.43009205,56338.0,56337.0,0.001634]
[1726034139273,0.81553223,56338.0,56337.0,0.001634]
[1726034139932,1.58553223,56338.0,56337.0,0.001634]
[1726034140605,1.63801666,56338.0,56337.0,0.001634]
[1726034140825,1.40962205,56336.0,56335.0,0.0024854]
[1726034141044,1.58556223,56336.0,56335.0,0.0024854]
[1726034142010,0.65392905,56334.0,56333.0,1.00144259]
[1726034142234,1.70870085,56334.0,56333.0,1.00144259]
[1726034142460,1.9118756,56334.0,56333.0,1.00144259]
[1726034143118,1.99055668,56334.0,56333.0,1.00144259]
[1726034143578,1.99208413,56334.0,56333.0,1.00144259]
[1726034144206,2.00608413,56334.0,56333.0,1.00144259]
[1726034144428,1.9398756,56334.0,56333.0,1.00144259]
[1726034144891,1.9398756,56334.0,56333.0,0.84294259]
[1726034145117,2.47029409,56334.0,56333.0,0.84294259]
[1726034145320,2.4179006,56334.0,56333.0,0.84294259]
[1726034145527,2.47026801,56334.0,56333.0,0.84294259]
[1726034146158,2.4039006,56334.0,56333.0,0.84294259]
[1726034146405,2.4039006,56334.0,56333.0,0.83618462]
[1726034146625,2.45624645,56334.0,56333.0,0.83618462]
[1726034146836,2.44224645,56334.0,56333.0,0.347361]
[1726034147067,2.4039006,56334.0,56333.0,0.347361]
[1726034147301,1.76836705,56330.0,56324.0,0.0024854]
[1726034147521,2.25348681,56330.0,56324.0,0.0024854]
[1726034147721,2.27648681,56330.0,56324.0,0.0024854]
[1726034149013,2.29048681,56330.0,56324.0,0.0024854]
[1726034150277,2.12138019,56330.0,56324.0,0.0024854]
[1726034150491,2.30448681,56330.0,56324.0,0.0024854]
[1726034150699,2.29048681,56330.0,56324.0,0.0024854]
[1726034151127,2.30448681,56330.0,56324.0,0.0024854]
[1726034151535,2.29048681,56330.0,56324.0,0.0024854]
[1726034151945,2.30448681,56330.0,56324.0,0.0024854]
[1726034154159,1.79414884,56330.0,56324.0,0.0024854]
[1726034154386,1.97725546,56330.0,56324.0,0.0024854]
[1726034156840,1.94943681,56330.0,56324.0,0.0024854]
[1726034157061,1.57138681,56330.0,56324.0,0.0024854]
[1726034157286,1.57138681,56330.0,56319.0,0.1583]
[1726034157287,0.08939205,56320.0,56319.0,0.1583]
[1726034158639,0.10339205,56320.0,56319.0,0.1583]
[1726034159272,0.08939205,56320.0,56319.0,0.3499]
[1726034159724,0.08939205,56320.0,56310.0,0.160437]
[1726034159725,0.08939205,56313.0,56310.0,0.160437]
[1726034162034,0.10239205,56313.0,56312.0,0.1607854]
[1726034162246,0.08939205,56313.0,56312.0,0.1607854]
[1726034162696,0.11539205,56313.0,56312.0,0.3523854]
[1726034162909,0.10139205,56313.0,56312.0,0.3523854]
[1726034163163,0.08939205,56313.0,56312.0,0.3523854]
[1726034163374,0.11439205,56313.0,56312.0,0.3523854]
[1726034169287,0.11439205,56313.0,56312.0,0.3540174]
[1726034169722,0.11239205,56313.0,56312.0,0.3540174]
[1726034171543,0.10139205,56313.0,56312.0,0.3540174]
[1726034172015,0.09939205,56313.0,56312.0,0.3540174]
[1726034172212,0.08739205,56313.0,56312.0,0.3540174]
[1726034172423,0.02739205,56313.0,56312.0,0.3540174]
[1726034172635,0.03239205,56313.0,56312.0,0.3540174]
[1726034172839,0.09239205,56313.0,56312.0,0.3540174]
[1726034173051,0.08739205,56313.0,56312.0,0.3540174]
[1726034173298,0.08739205,56313.0,56312.0,0.3550174]
[1726034173507,0.08939205,56313.0,56312.0,0.3570174]
[1726034174166,0.08939205,56313.0,56312.0,0.3550174]
[1726034174636,0.08939205,56313.0,56312.0,0.3540174]
[1726034175521,0.08939205,56313.0,56312.0,0.3550174]
[1726034175961,0.08939205,56313.0,56312.0,0.23592724]
[1726034175962,0.02728705,56313.0,56312.0,0.23592724]
[1726034176196,0.06,56315.0,56312.0,0.23592724]
[1726034176197,0.02728705,56315.0,56313.0,0.329]
[1726034176411,0.08728705,56315.0,56314.0,0.32374018]
[1726034176634,0.08728705,56315.0,56314.0,0.50885727]
[1726034177425,0.08928705,56315.0,56314.0,0.50885727]
[1726034178089,0.09128705,56315.0,56314.0,0.50885727]
[1726034178304,0.09428705,56315.0,56314.0,0.50885727]
[1726034178749,0.09228705,56315.0,56314.0,0.50885727]
[1726034178960,0.09428705,56315.0,56314.0,0.50885727]
[1726034179651,0.09428705,56315.0,56314.0,0.2478]
[1726034184484,0.17305224,56315.0,56314.0,0.2478]
[1726034185134,0.17305224,56315.0,56314.0,0.1]
[1726034185346,0.17305224,56315.0,56313.0,0.1]
[1726034185347,0.002,56314.0,56313.0,0.1]
[1726034185603,0.08146549,56314.0,56313.0,0.1]
[1726034185812,0.002,56314.0,56313.0,0.1]
[1726034186660,0.08146549,56314.0,56313.0,0.1]
[1726034186870,0.08246549,56314.0,56313.0,0.1]
[1726034187298,0.08346549,56314.0,56313.0,0.1]
[1726034187558,0.004,56314.0,56313.0,0.1]
[1726034187982,0.08346549,56314.0,56313.0,0.1]
[1726034189723,0.08347987,56314.0,56313.0,0.1]
[1726034189951,0.004,56314.0,56313.0,0.1]
[1726034190412,0.0569865,56314.0,56313.0,0.1]
[1726034190635,0.064,56314.0,56313.0,0.1]
[1726034190879,0.14347987,56314.0,56313.0,0.1]
[1726034191595,0.064,56314.0,56313.0,0.0866]
[1726034191823,0.064,56314.0,56312.0,0.1519174]
[1726034192065,0.11498748,56313.0,56312.0,0.1519174]
[1726034192293,0.11498748,56313.0,56312.0,0.1856335]
[1726034193464,0.11298748,56313.0,56312.0,0.1856335]
[1726034193703,0.06,56313.0,56312.0,0.46874012]
[1726034194194,0.06,56313.0,56312.0,0.39563524]
[1726034195809,0.06,56313.0,56312.0,0.39663524]
[1726034196034,0.05298748,56314.0,56312.0,0.57257542]
[1726034196265,0.02728705,56314.0,56313.0,0.49451142]
[1726034196715,0.02928705,56314.0,56313.0,0.49451142]
[1726034196955,0.02728705,56314.0,56313.0,0.49451142]
[1726034197440,0.02828705,56314.0,56313.0,0.49451142]
[1726034197892,0.02928705,56314.0,56313.0,0.49451142]
[1726034199307,0.02728705,56314.0,56313.0,0.49451142]
[1726034199548,0.02828705,56314.0,56313.0,0.49451142]
[1726034199780,0.02928705,56314.0,56313.0,0.49451142]
[1726034200885,0.03128705,56314.0,56313.0,0.49451142]
[1726034201575,0.02928705,56314.0,56313.0,0.49451142]
[1726034203646,0.02928705,56314.0,56313.0,0.2611]
[1726034203891,0.03128705,56314.0,56313.0,0.1]
[1726034204757,0.03128705,56314.0,56312.0,0.11411914]
[1726034204758,0.062,56313.0,56312.0,0.0041174]
[1726034204991,0.08928705,56313.0,56312.0,0.11411914]
[1726034205392,0.08928705,56313.0,56312.0,0.21411914]
[1726034206035,0.08928705,56313.0,56312.0,0.21511914]
[1726034207078,0.08928705,56313.0,56312.0,0.21411914]
[1726034207294,0.09428705,56313.0,56312.0,0.21411914]
[1726034208554,0.09128705,56313.0,56312.0,0.21411914]
[1726034208764,0.08928705,56313.0,56312.0,0.21411914]
[1726034208946,0.09228705,56313.0,56312.0,0.21411914]
[1726034209415,0.09428705,56313.0,56312.0,0.21411914]
[1726034213046,0.09228705,56313.0,56312.0,0.25195475]
[1726034213469,0.17185787,56313.0,56312.0,0.25195475]
[1726034213660,0.17185787,56313.0,56312.0,0.21411914]
[1726034214339,0.17385787,56313.0,56312.0,0.21411914]
[1726034214607,0.17185787,56313.0,56312.0,0.55215932]
[1726034215052,0.09228705,56313.0,56312.0,0.57007749]
[1726034215271,0.09228705,56313.0,56312.0,0.74624704]
[1726034215510,0.09228705,56313.0,56312.0,0.57007749]
[1726034217066,0.09228705,56313.0,56312.0,0.46007575]
[1726034217270,0.067,56313.0,56312.0,0.57007749]
[1726034217478,0.09228705,56313.0,56312.0,0.57007749]
[1726034218757,0.005,56313.0,56312.0,0.57007749]
[1726034218980,0.05804893,56313.0,56312.0,0.57007749]
[1726034219400,0.05804893,56313.0,56312.0,0.2662174]
[1726034219670,0.24158705,56313.0,56312.0,0.0041174]
[1726034219883,0.44548894,56313.0,56312.0,0.0041174]
[1726034220549,0.44630594,56313.0,56312.0,0.0041174]
[1726034220980,0.52716412,56313.0,56312.0,0.0041174]
[1726034221421,0.44630594,56313.0,56312.0,0.0041174]
[1726034224371,0.44555037,56313.0,56312.0,0.0041174]
[1726034225478,0.29825037,56313.0,56312.0,0.0041174]
[1726034225685,0.43080845,56313.0,56312.0,0.0041174]
[1726034225913,0.40229935,56313.0,56312.0,0.1662174]
[1726034226138,0.09510405,56313.0,56312.0,0.1662174]
[1726034226371,0.17464394,56313.0,56312.0,0.1662174]
[1726034228122,0.09510405,56313.0,56312.0,0.0041174]
[1726034228552,0.57829758,56313.0,56312.0,0.0041174]
[1726034229191,0.57809221,56313.0,56312.0,0.0041174]
[1726034229415,0.70500406,56313.0,56312.0,0.0041174]